fUST/lending_fUST_20240127
["ID","MTS","AMOUNT","RATE_DAILY","PERIOD"]
[312850317,1706357438507,-153.0,0.00028578,2]
[312850319,1706357438516,-212.0814075,0.00028578,2]
[312850321,1706357438525,-153.0,0.00028578,2]
[312850323,1706357438534,-153.0,0.00028978,2]
[312850326,1706357438544,-153.0,0.00028978,2]
[312850327,1706357438555,-199.4415769,0.00028978,2]
[312850329,1706357438563,-153.0,0.00028978,2]
[312850331,1706357438573,-199.4415769,0.00028978,2]
[312850333,1706357438582,-153.0,0.00028978,2]
[312850335,1706357438591,-7196.06854955,0.00029,4]
[312850338,1706357438600,-1000.0,0.00029,2]
[312850339,1706357438609,-155.01705188,0.00029,2]
[312850342,1706357438620,-1933.42796518,0.00029,2]
[312850343,1706357438629,-153.0,0.00029041,2]
[312850345,1706357438637,-151.60673541,0.00029074,2]
[312850347,1706357438645,-153.0,0.00029252,2]
[312850349,1706357438655,-159.5134984,0.00029252,2]
[312850351,1706357438664,-527.01508147,0.00029288,2]
[312850353,1706357438674,-266.7964241,0.0002929,2]
[312850355,1706357438683,-7824.46076278,0.00029292,4]
[312850357,1706357438692,-50000.0,0.00029292,4]
[312850360,1706357438702,-50000.0,0.00029292,4]
[312850361,1706357438711,-68048.27964019,0.00029292,4]
[312850363,1706357438720,-5000.0,0.00029292,5]
[312850365,1706357438728,-2281.44695437,0.00029301,3]
[312850367,1706357438737,-22129.54452783,0.00029301,3]
[312850369,1706357438746,-6638.86335835,0.00029301,2]
[312850371,1706357438755,-550.41173226,0.00029314,2]
[312850373,1706357438764,-153.0,0.00029315,2]
[312850375,1706357438776,-164.486678,0.00029315,2]
[312850377,1706357438785,-1789.63924144,0.00029729,2]
[312850379,1706357438794,-294.35075022,0.0002973,2]
[312850380,1706357438804,-21765.80175956,0.00029731,2]
[312850381,1706357438812,-151.0,0.00029879,2]
[312850382,1706357438821,-30512.77255469,0.00029933,2]
[312850383,1706357438829,-309.90625369,0.0003,4]
[312850384,1706357438926,-195.57103754,0.0003,2]
[312850385,1706357438936,-564.05867456,0.00030031,2]
[312850386,1706357438945,-227.73971285,0.00030031,4]
[312850387,1706357438954,-6063.0591503,0.00030031,2]
[312850388,1706357438964,-523.84175296,0.00030032,4]
[312850389,1706357438973,-717.70891174,0.00030032,4]
[312850390,1706357438982,-1027.50463707,0.00030033,2]
[312850391,1706357438991,-649.86107879,0.00030033,4]
[312850392,1706357439000,-2455.69377072,0.00030033,2]
[312850393,1706357439009,-3193.56181162,0.00030034,4]
[312850394,1706357439018,-254.87264804,0.00030034,2]
[312850395,1706357439027,-303.61999861,0.00030034,4]
[312850396,1706357439036,-165.29707595,0.00030034,4]
[312850397,1706357439045,-621.18906223,0.00030076,2]
[312850398,1706357439054,-2000.0,0.000301,2]
[312850399,1706357439063,-2000.0,0.0003011,2]
[312850400,1706357439072,-2000.0,0.0003012,2]
[312850401,1706357439081,-2000.0,0.0003013,2]
[312850402,1706357439090,-1000.0,0.00030131,3]
[312850403,1706357439099,-681.16510115,0.00030132,4]
[312850404,1706357439109,-4795.07598792,0.00030132,4]
[312850405,1706357439118,-482.82568015,0.00030132,4]
[312850406,1706357439127,-170.05097642,0.00030132,4]
[312850407,1706357439136,-155.13402632,0.00030132,4]
[312850408,1706357439145,-203.02463947,0.00030132,2]
[312850409,1706357439154,-225.62064487,0.00030133,4]
[312850410,1706357439167,-2074.94658461,0.00030133,4]
[312850411,1706357439176,-200.30775623,0.00030133,4]
[312850412,1706357439184,-171.43620481,0.00030133,4]
[312850413,1706357439194,-1466.09210765,0.00030133,4]
[312850414,1706357439204,-230.81497573,0.00030133,4]
[312850415,1706357439213,-284.30857523,0.00030133,4]
[312850416,1706357439222,-19528.13022608,0.00030133,4]
[312850417,1706357439231,-157.33639088,0.00030133,4]
[312850418,1706357439242,-189.98883944,0.00030133,4]
[312850419,1706357439251,-155.40863944,0.00030133,4]
[312850420,1706357439260,-4807.266713,0.00030133,2]
[312850421,1706357439269,-4807.266713,0.00030133,2]
[312850422,1706357439278,-19928.13232777,0.00030135,4]
[312850423,1706357439287,-274.54243303,0.00030135,4]
[312850424,1706357439296,-2427.695043,0.00030135,2]
[312850425,1706357439306,-2427.695043,0.00030135,2]
[312850426,1706357439314,-154.5089909,0.00030137,2]
[312850427,1706357439323,-272.585389,0.00030137,2]
[312850428,1706357439333,-158.81503,0.00030137,2]
[312850429,1706357439342,-500.0,0.00030139,2]
[312850430,1706357439352,-500.0,0.00030139,2]
[312850431,1706357439361,-500.0,0.00030139,2]
[312850432,1706357439371,-172.73238116,0.00030139,2]
[312850433,1706357439380,-335.28077481,0.00030139,2]
[312850434,1706357439389,-500.0,0.00030139,2]
[312850435,1706357439398,-500.0,0.00030139,2]
[312850436,1706357439407,-500.0,0.00030139,2]
[312850437,1706357439417,-158.06765206,0.00030139,2]
[312850438,1706357439426,-500.0,0.00030139,2]
[312850439,1706357439435,-500.0,0.00030139,2]
[312850440,1706357439445,-500.0,0.00030139,2]
[312850441,1706357439454,-500.0,0.00030139,2]
[312850442,1706357439463,-500.0,0.00030139,2]
[312850443,1706357439473,-500.0,0.00030139,2]
[312850444,1706357439482,-500.0,0.00030139,2]
[312850445,1706357439491,-500.0,0.00030139,2]
[312850446,1706357439500,-500.0,0.00030139,2]
[312850447,1706357439509,-500.0,0.00030139,2]
[312850448,1706357439518,-500.0,0.00030139,2]
[312850449,1706357439527,-574.83531078,0.00030139,2]
[312850450,1706357439536,-500.0,0.00030139,2]
[312850451,1706357439545,-500.0,0.00030139,2]
[312850452,1706357439554,-500.0,0.00030139,2]
[312850453,1706357439563,-451.13072995,0.00030139,2]
[312850454,1706357439571,-500.0,0.00030139,2]
[312850455,1706357439581,-500.0,0.00030139,2]
[312850456,1706357439591,-500.0,0.00030139,2]
[312850457,1706357439601,-500.0,0.00030139,2]
[312850458,1706357439610,-500.0,0.00030139,2]
[312850459,1706357439619,-500.0,0.00030139,2]
[312850460,1706357439628,-500.0,0.00030139,2]
[312850461,1706357439637,-500.0,0.00030139,2]
[312850462,1706357439647,-500.0,0.00030139,2]
[312850463,1706357439656,-500.0,0.00030139,2]
[312850464,1706357439667,-500.0,0.00030139,2]
[312850465,1706357439678,-500.0,0.00030139,2]
[312850466,1706357439687,-500.0,0.00030139,2]
[312850467,1706357439697,-500.0,0.00030139,2]
[312850468,1706357439705,-500.0,0.00030139,2]
[312850469,1706357439715,-500.0,0.00030139,2]
[312850470,1706357439724,-500.0,0.00030139,2]
[312850471,1706357439734,-500.0,0.00030139,2]
[312850472,1706357439744,-500.0,0.00030139,2]
[312850473,1706357439753,-500.0,0.00030139,2]
[312850474,1706357439763,-500.0,0.00030139,2]
[312850475,1706357439772,-500.0,0.00030139,2]
[312850476,1706357439781,-500.0,0.00030139,2]
[312850477,1706357439790,-500.0,0.00030139,2]
[312850478,1706357439799,-500.0,0.00030139,2]
[312850479,1706357439809,-2794.066118,0.0003014,2]
[312850480,1706357439818,-621.82883867,0.00030341,2]
[312850481,1706357439827,-573.74982233,0.00030467,5]
[312850482,1706357439836,-151.0,0.00030467,2]
[312850483,1706357439845,-176.26792488,0.00030543,2]
[312850484,1706357439854,-282.960295,0.00030642,2]
[312850485,1706357439863,-282.960295,0.00030642,2]
[312850486,1706357439872,-151.0,0.00030644,2]
[312850487,1706357439880,-157.328939,0.00030644,2]
[312850488,1706357439890,-157.328939,0.00030644,2]
[312850489,1706357439899,-151.0,0.00030645,2]
[312850490,1706357439908,-151.0,0.00030645,2]
[312850491,1706357439917,-151.0,0.00030645,2]
[312850492,1706357439926,-151.0,0.00031056,2]
[312850493,1706357439934,-272.585389,0.00031115,2]
[312850494,1706357439943,-151.01812217,0.00031282,4]
[312850495,1706357439954,-158.81503,0.00031507,2]
[312850496,1706357439963,-620.05945311,0.0003158,2]
[312850497,1706357439972,-500.0,0.0003162,3]
[312850498,1706357439981,-500.0,0.0003162,3]
[312850499,1706357439990,-500.0,0.0003164,3]
[312850500,1706357439999,-500.0,0.0003164,3]
[312850501,1706357440008,-151.0,0.00031644,2]
[312850502,1706357440018,-500.0,0.0003166,3]
[312850503,1706357440027,-500.0,0.0003166,3]
[312850504,1706357440038,-500.0,0.0003168,3]
[312850505,1706357440047,-500.0,0.0003168,3]
[312850506,1706357440056,-500.0,0.000317,3]
[312850507,1706357440065,-500.0,0.000317,3]
[312850508,1706357440073,-500.0,0.0003172,3]
[312850509,1706357440082,-500.0,0.0003172,3]
[312850510,1706357440091,-150.70062205,0.00031724,2]
[312850511,1706357440100,-500.0,0.0003174,3]
[312850512,1706357440109,-500.0,0.0003174,3]
[312850513,1706357440118,-500.0,0.0003176,3]
[312850514,1706357440127,-500.0,0.0003176,3]
[312850515,1706357440136,-500.0,0.0003178,3]
[312850516,1706357440144,-500.0,0.0003178,3]
[312850517,1706357440154,-500.0,0.000318,3]
[312850518,1706357440169,-500.0,0.000318,3]
[312850519,1706357440178,-500.0,0.0003182,3]
[312850520,1706357440187,-500.0,0.0003182,3]
[312850521,1706357440196,-500.0,0.0003184,3]
[312850522,1706357440205,-500.0,0.0003184,3]
[312850523,1706357440215,-620.09144193,0.00031858,2]
[312850524,1706357440223,-500.0,0.0003186,3]
[312850525,1706357440233,-500.0,0.0003186,3]
[312850526,1706357440243,-500.0,0.0003188,3]
[312850527,1706357440252,-500.0,0.0003188,3]
[312850528,1706357440261,-500.0,0.000319,3]
[312850529,1706357440269,-500.0,0.000319,3]
[312850530,1706357440278,-500.0,0.0003192,3]
[312850531,1706357440287,-500.0,0.0003192,3]
[312850532,1706357440296,-151.01812217,0.0003192,2]
[312850533,1706357440305,-500.0,0.0003194,3]
[312850534,1706357440314,-500.0,0.0003194,3]
[312850535,1706357440323,-500.0,0.0003196,3]
[312850536,1706357440332,-500.0,0.0003196,3]
[312850537,1706357440341,-500.0,0.0003198,3]
[312850538,1706357440351,-500.0,0.0003198,3]
[312850539,1706357440361,-31178.29881521,0.00032,2]
[312850540,1706357440372,-155.01705188,0.00032,4]
[312850541,1706357440382,-897.97777174,0.00032,7]
[312850542,1706357440391,-39131.00414303,0.00032,15]
[312850543,1706357440400,-3138.37234854,0.00032,2]
[312850544,1706357440410,-151.0,0.00032,2]
[312850546,1706357440490,-151.0,0.00032,2]
[312850547,1706357440499,-151.0,0.00032,2]
[312850548,1706357440508,-157.328939,0.00032,2]
[312850549,1706357440518,-157.328939,0.00032,2]
[312850550,1706357440526,-282.960295,0.00032,2]
[312850551,1706357440535,-282.960295,0.00032,2]
[312850552,1706357440544,-500.0,0.00032,3]
[312850553,1706357440554,-500.0,0.00032,3]
[312850554,1706357440563,-150.546721,0.00032,2]
[312850555,1706357440571,-245.548314,0.00032,5]
[312850556,1706357440580,-245.548314,0.00032,5]
[312850557,1706357440589,-245.548314,0.00032,5]
[312850558,1706357440598,-2427.695043,0.00032,2]
[312850559,1706357440608,-2427.695043,0.00032,2]
[312850560,1706357440617,-4807.266713,0.00032,2]
[312850561,1706357440627,-4807.266713,0.00032,2]
[312850562,1706357440636,-272.585389,0.00032094,2]
[312850563,1706357440645,-151.0,0.00032232,2]
[312850564,1706357440655,-151.0,0.0003282,2]
[312850565,1706357440664,-158.81503,0.00032877,2]
[312850566,1706357440674,-22355.32655684,0.00033,5]
[312850567,1706357440683,-304.86419737,0.00033,3]
[312850568,1706357440693,-2504.0,0.00033,2]
[312850569,1706357440702,-228.50754628,0.00033,2]
[312850570,1706357440712,-2381.55591671,0.00033,2]
[312850571,1706357440721,-154.0,0.00033,2]
[312850572,1706357440730,-272.585389,0.00033072,2]
[312850573,1706357440739,-620.00297266,0.00033159,2]
[312850574,1706357440748,-300.0,0.000334,17]
[312850575,1706357440757,-151.0,0.00033409,2]
[312850576,1706357440766,-2006.52550416,0.0003344,14]
[312850577,1706357440775,-2134.947074,0.00033516,2]
[312850578,1706357440784,-1427.241683,0.00033516,2]
[312850579,1706357440793,-164.466127,0.00033516,2]
[312850580,1706357440802,-2134.947074,0.00033935,2]
[312850581,1706357440811,-1427.241683,0.00033935,2]
[312850582,1706357440820,-151.0,0.00033997,2]
[312850583,1706357440830,-1009.0,0.00034,2]
[312850584,1706357440839,-2500.0,0.00034,3]
[312850585,1706357440848,-1000.0,0.00034,2]
[312850586,1706357440857,-55082.0,0.00034,2]
[312850587,1706357440867,-2427.695043,0.00034,2]
[312850588,1706357440875,-2427.695043,0.00034,2]
[312850589,1706357440885,-4807.266713,0.00034,2]
[312850590,1706357440895,-4807.266713,0.00034,2]
[312850591,1706357440904,-272.585389,0.00034051,2]
[312850592,1706357440913,-50000.0,0.00034067,7]
[312850593,1706357440923,-208.097472,0.00034067,2]
[312850594,1706357440933,-208.097472,0.00034067,2]
[312850595,1706357440942,-151.0,0.00034067,2]
[312850596,1706357440951,-151.0,0.00034067,2]
[312850597,1706357440961,-151.0,0.00034067,2]
[312850598,1706357440970,-151.0,0.00034067,2]
[312850599,1706357440979,-157.328939,0.00034067,2]
[312850600,1706357440989,-157.328939,0.00034067,2]
[312850601,1706357440998,-282.960295,0.00034067,2]
[312850602,1706357441007,-282.960295,0.00034067,2]
[312850603,1706357441017,-4807.266713,0.00034067,2]
[312850604,1706357441027,-4807.266713,0.00034067,2]
[312850605,1706357441037,-158.81503,0.00034247,2]
[312850607,1706357441047,-2134.947074,0.00034354,2]
[312850609,1706357441056,-1427.241683,0.00034354,2]
[312850610,1706357441066,-410.129436,0.000345,2]
[312850611,1706357441075,-154.0,0.00034521,2]
[312850612,1706357441085,-151.0,0.00034585,2]
[312850614,1706357441094,-2000.0,0.000347,2]
[312850615,1706357441104,-2000.0,0.000347,2]
[312850617,1706357441113,-2000.0,0.000347,2]
[312850618,1706357441123,-2000.0,0.000347,2]
[312850619,1706357441132,-1000.0,0.00034722,10]
[312850620,1706357441142,-2134.947074,0.00034773,2]
[312850622,1706357441151,-1427.241683,0.00034773,2]
[312850623,1706357441162,-615.194155,0.000348,2]
[312850624,1706357441173,-300.0,0.000349,17]
[312850625,1706357441182,-3476.12,0.00034999,2]
[312850626,1706357441191,-3476.12,0.00034999,2]
[312850627,1706357441201,-3476.12,0.00034999,2]
[312850628,1706357441210,-3476.12,0.00034999,2]
[312850629,1706357441219,-3476.12,0.00034999,2]
[312850630,1706357441229,-3476.12,0.00034999,2]
[312850631,1706357441238,-3476.13,0.00034999,2]
[312850632,1706357441248,-3476.13,0.00034999,2]
[312850633,1706357441257,-3476.13,0.00034999,2]
[312850634,1706357441266,-3476.14,0.00034999,2]
[312850635,1706357441276,-2427.695043,0.00034999,2]
[312850636,1706357441285,-2427.695043,0.00034999,2]
[312850637,1706357441294,-78779.66661041,0.00035,15]
[312850638,1706357441304,-155.12190431,0.00035,6]
[312850639,1706357441314,-42271.13529717,0.00035,2]
[312850640,1706357441323,-592.61828384,0.00035,2]
[312850641,1706357441333,-820.258873,0.00035,2]
[312850642,1706357441342,-1000.0,0.00035,2]
[312850643,1706357441352,-714.830675,0.00035,7]
[312850644,1706357441361,-208.097472,0.00035,2]
[312850645,1706357441370,-208.097472,0.00035,2]
[312850646,1706357441380,-151.661833,0.00035,2]
[312850647,1706357441389,-151.0,0.00035,2]
[312850648,1706357441399,-2000.0,0.00035,11]
[312850649,1706357441408,-151.0,0.00035,2]
[312850650,1706357441418,-151.0,0.00035,2]
[312850651,1706357441427,-157.328939,0.00035,2]
[312850652,1706357441437,-157.328939,0.00035,2]
[312850653,1706357441446,-282.960295,0.00035,2]
[312850654,1706357441456,-282.960295,0.00035,2]
[312850655,1706357441466,-2427.695043,0.00035,2]
[312850656,1706357441476,-2427.695043,0.00035,2]
[312850657,1706357441485,-4807.266713,0.00035,2]
[312850658,1706357441495,-4807.266713,0.00035,2]
[312850659,1706357441504,-2000.0,0.0003501,11]
[312850660,1706357441514,-2000.0,0.0003502,11]
[312850661,1706357441523,-272.585389,0.00035029,2]
[312850662,1706357441533,-2000.0,0.0003503,11]
[312850663,1706357441542,-2000.0,0.0003504,11]
[312850664,1706357441551,-2000.0,0.0003505,11]
[312850665,1706357441560,-2000.0,0.0003506,12]
[312850666,1706357441569,-2000.0,0.0003507,12]
[312850667,1706357441579,-268.77083049,0.00035076,2]
[312850668,1706357441588,-161.40312299,0.00035078,4]
[312850669,1706357441597,-2000.0,0.0003508,12]
[312850670,1706357441607,-2000.0,0.0003509,12]
[312850671,1706357441617,-2000.0,0.000351,12]
[312850672,1706357441626,-2000.0,0.0003511,12]
[312850673,1706357441636,-2000.0,0.0003512,12]
[312850674,1706357441645,-2000.0,0.0003513,12]
[312850675,1706357441655,-2000.0,0.0003514,12]
[312850676,1706357441665,-2000.0,0.0003515,12]
[312850677,1706357441674,-2000.0,0.0003516,12]
[312850678,1706357441684,-3482.948512,0.0003517,12]
[312850679,1706357441693,-151.0,0.00035173,4]
[312850680,1706357441702,-151.555783,0.00035192,2]
[312850681,1706357441711,-151.0,0.00035192,2]
[312850682,1706357441721,-151.0,0.00035192,2]
[312850683,1706357441729,-157.328939,0.00035192,2]
[312850684,1706357441739,-157.328939,0.00035192,2]
[312850685,1706357441748,-282.960295,0.00035192,2]
[312850686,1706357441758,-282.960295,0.00035192,2]
[312850687,1706357441767,-2986.95154161,0.00035192,2]
[312850688,1706357441782,-1820.31517139,0.00035192,2]
[312850689,1706357441791,-4807.266713,0.00035192,2]
[312850690,1706357441802,-2134.947074,0.00035192,2]
[312850691,1706357441813,-1427.241683,0.00035192,2]
[312850692,1706357441822,-13.07888149,0.00035192,2]
[312850693,1706357441842,-151.38724551,0.00035192,2]
[312850694,1706357441851,-151.01812217,0.00035467,2]
[312850695,1706357441860,-250.52094251,0.00035467,2]
[312850696,1706357441871,-770.97687092,0.000356,2]
[312850697,1706357441952,-254.34672108,0.000356,2]
[312850698,1706357441962,-208.097472,0.000356,2]
[312850699,1706357441972,-208.097472,0.000356,2]
[312850700,1706357441981,-400.30246957,0.00035616,2]
[312850701,1706357441991,-182.6546824,0.00035616,2]
[312850702,1706357442000,-1252.11784094,0.00035616,120]
[312850703,1706357442011,-1331.75520806,0.00035616,120]
[312850704,1706357442021,-158.81503,0.00035616,2]
[312850705,1706357442030,-153.97431221,0.00035655,2]
[312850706,1706357442040,-647.05795686,0.00035655,2]
[312850707,1706357442049,-476.59168125,0.00035655,2]
[312850708,1706357442059,-996.38168141,0.00035655,10]
[312850709,1706357442071,-3.61831859,0.00035655,10]
[312850710,1706357442081,-700.0,0.00035655,2]
[312850711,1706357442091,-694.81556273,0.00035655,2]
[312850712,1706357442100,-306.7284981,0.00035655,2]
[312850713,1706357442109,-164.1086705,0.00035655,2]
[312850714,1706357442118,-196.30948519,0.00035655,2]
[312850715,1706357442128,-162.55165277,0.00035655,2]
[312850716,1706357442138,-151.0,0.00035762,4]
[312850717,1706357442147,-231.69794187,0.00036,2]
[312850830,1706357446288,-446.33105941,0.00025286,2]
[312850833,1706357525976,155.01860223,0.00020995,4]
[312850836,1706357914775,573.74982233,0.00020995,5]
[312850842,1706358611163,-155.01860223,0.00018441,2]
[312850843,1706358611186,-1580.67204766,0.00018441,2]
[312850844,1706358611219,-464.30935011,0.00018442,2]
[312850895,1706358632304,-155.01860223,0.00018441,3]
[312850897,1706358632314,-56.69064989,0.00018442,2]
[312850899,1706358632323,-523.34168566,0.00018442,2]
[312850901,1706358632333,-527.10191996,0.00018443,2]
[312850903,1706358632341,-155.06158408,0.00018443,2]
[312850905,1706358632351,-1465.77558906,0.00018545,2]
[312850907,1706358632360,-268.73672981,0.00018545,2]
[312850910,1706358632369,-266.7964241,0.00018546,2]
[312850913,1706358632379,-8248.5465073,0.00018547,2]
[312851125,1706358638350,-11632.49602513,0.00018547,2]
[312851127,1706358638359,-21765.80175956,0.00018548,2]
[312851128,1706358638368,-294.35075022,0.00018735,2]
[312851129,1706358638377,-550.41173226,0.00018735,2]
[312851130,1706358638386,-1789.63924144,0.00018735,2]
[312851131,1706358638395,-227.73971285,0.00018736,2]
[312851132,1706358638403,-564.05867456,0.00018736,2]
[312851133,1706358638412,-6063.0591503,0.00018736,2]
[312851134,1706358638421,-9902.7781099,0.00018738,2]
[312851135,1706358638430,-165.9389055,0.00018846,2]
[312851136,1706358638439,-1583.7528565,0.00019,2]
[312851137,1706358638447,-717.70891174,0.00019684,2]
[312851138,1706358638456,-523.84175296,0.00019684,2]
[312851140,1706358638465,-482.82568015,0.0001995,2]
[312851141,1706358638474,-203.02463947,0.0001995,2]
[312851142,1706358638483,-170.05097642,0.0001995,2]
[312851143,1706358638491,-4795.07598792,0.0001995,2]
[312851144,1706358638500,-225.62064487,0.0001995,2]
[312851145,1706358638510,-189.98883944,0.00019951,2]
[312851146,1706358638519,-155.40863944,0.00019951,2]
[312851147,1706358638528,-200.30775623,0.00019951,2]
[312851148,1706358638539,-171.43620481,0.00019951,2]
[312851149,1706358638548,-230.81497573,0.00019951,2]
[312851150,1706358638561,-2074.94658461,0.00019951,2]
[312851151,1706358638570,-157.33639088,0.00019952,2]
[312851152,1706358638579,-19528.13022608,0.00019952,2]
[312851153,1706358638589,-7966.81883748,0.00019952,2]
[312851154,1706358638600,-155.39567029,0.00019954,2]
[312851155,1706358638608,-1026.83362731,0.00019954,2]
[312851156,1706358638617,-274.54243303,0.00019954,2]
[312851157,1706358638627,-3747.87536289,0.00019955,2]
[312851158,1706358638638,-284.30857523,0.0002,2]
[312851159,1706358638648,-681.16510115,0.0002,2]
[312851160,1706358638657,-155.01860223,0.0002,2]
[312851161,1706358638667,-166.4685293,0.00020203,2]
[312851162,1706358638677,-2084.071023,0.00020995,2]
[312851163,1706358638687,-930.4806264,0.00020995,2]
[312851164,1706358638697,-165.29707595,0.00020995,2]
[312851165,1706358638706,-652.36942683,0.00020997,2]
[312851166,1706358638716,-176.26792488,0.00021818,2]
[312851167,1706358638725,-72945.6992653,0.00021915,2]
[312851168,1706358638734,-166.666666,0.00021918,2]
[312851169,1706358638747,-327.61566675,0.00022,2]
[312851170,1706358638756,-164.09330822,0.00022,2]
[312851171,1706358638766,-166.666666,0.00022431,2]
[312851172,1706358638775,-166.666666,0.00022944,2]
[312851173,1706358638784,-9947.92180076,0.00023,2]
[312851174,1706358638793,-1416.67721386,0.00023,2]
[312851175,1706358638802,-166.666666,0.00023456,2]
[312851176,1706358638812,-166.666666,0.00023969,2]
[312851177,1706358638822,-4017.99473219,0.00024,2]
[312851178,1706358638831,-166.666666,0.00024482,2]
[312851179,1706358638840,-772.64107846,0.00024999,2]
[312851180,1706358638850,-4727.98807036,0.00025,2]
[312851181,1706358638859,-851.06760342,0.00025,2]
[312851182,1706358638869,-156.19598509,0.00025,2]
[312851183,1706358638878,-263.32427469,0.00025285,2]
[312851184,1706358638888,-1201.20254548,0.00025285,2]
[312851185,1706358638897,-1297.40269094,0.00025285,2]
[312851186,1706358638907,-2162.34501208,0.00025285,2]
[312851187,1706358638916,-214.95747743,0.00025286,2]
[312851188,1706358638926,-179.5831829,0.00025286,2]
[312851189,1706358638935,-565.52130685,0.00025286,2]
[312851190,1706358638945,-764.75702273,0.00025286,2]
[312851191,1706358638954,-359.97077706,0.00025286,2]
[312851192,1706358638963,-303.74433034,0.00025286,2]
[312851193,1706358638973,-290.6944281,0.00027,2]
[312851194,1706358638983,-621.88814315,0.0002728,2]
[312851195,1706358638992,-3193.56181162,0.000275,2]
[312851196,1706358639002,-200.93387921,0.000279,2]
[312851197,1706358639011,-200.93387921,0.000279,2]
[312851198,1706358639021,-556.2457431,0.00028,2]
[312851199,1706358639030,-620.09440716,0.00028644,2]
[312851200,1706358639040,-7196.06854955,0.00029,4]
[312851201,1706358639049,-1000.0,0.00029,2]
[312851202,1706358639058,-1933.42796518,0.00029,2]
[312851203,1706358639068,-2440.95740282,0.0002935,2]
[312851204,1706358639078,-5000.0,0.0002935,5]
[312851205,1706358639087,-10903.29294818,0.0002935,4]
[312851206,1706358639097,-1084.02130394,0.0002935,2]
[312851207,1706358639106,-5000.0,0.0002935,5]
[312851208,1706358639115,-50000.0,0.0002935,4]
[312851209,1706358639125,-73090.91815132,0.0002935,4]
[312851210,1706358639135,-454.90275515,0.0003,4]
[312851211,1706358639144,-254.87264804,0.0003,2]
[312851212,1706358639154,-309.90625369,0.0003,4]
[312851213,1706358639164,-195.57103754,0.0003,2]
[312851214,1706358639173,-620.00472036,0.00030076,2]
[312851215,1706358639183,-154.5089909,0.00030137,2]
[312851216,1706358639192,-317.486678,0.00030137,2]
[312851217,1706358639202,-153.0,0.00030137,2]
[312851218,1706358639211,-153.0,0.00030137,2]
[312851219,1706358639220,-153.0,0.00030137,2]
[312851220,1706358639230,-153.0,0.00030137,2]
[312851221,1706358639239,-199.4415769,0.00030137,2]
[312851222,1706358639248,-153.0,0.00030137,2]
[312851223,1706358639257,-153.0,0.00030137,2]
[312851224,1706358639266,-199.4415769,0.00030137,2]
[312851225,1706358639275,-153.0,0.00030137,2]
[312851226,1706358639285,-153.0,0.00030137,2]
[312851227,1706358639294,-199.4415769,0.00030137,2]
[312851228,1706358639303,-306.0,0.00030137,2]
[312851229,1706358639312,-199.4415769,0.00030137,2]
[312851230,1706358639322,-153.0,0.00030137,2]
[312851231,1706358639331,-153.0,0.00030137,2]
[312851232,1706358639341,-153.0,0.00030137,2]
[312851233,1706358639350,-153.0,0.00030137,2]
[312851234,1706358639359,-153.0,0.00030137,2]
[312851235,1706358639368,-153.0,0.00030137,2]
[312851236,1706358639377,-272.585389,0.00030137,2]
[312851237,1706358639387,-158.81503,0.00030137,2]
[312851238,1706358639396,-272.585389,0.00031115,2]
[312851239,1706358639406,-77365.87930664,0.0003143,2]
[312851240,1706358639415,-620.00023602,0.0003158,2]
[312851241,1706358639424,-158.81503,0.00031703,2]
[312851242,1706358639433,-151.0,0.00031953,2]
[312851243,1706358639444,-897.97777174,0.00032,7]
[312851244,1706358639453,-155.01705188,0.00032,4]
[312851245,1706358639462,-245.548314,0.00032,5]
[312851246,1706358639471,-272.585389,0.00032094,2]
[312851247,1706358639481,-151.0,0.00032476,2]